bitfinex/quotes_SOLUSD_20250415
["timestamp","ask_amount","ask_price","bid_price","bid_amount"]
[1744688071940,11.55163392,130.63,130.58,11.83595706]
[1744688072942,7.6557,130.62,130.58,11.83595706]
[1744688073745,7.6557,130.62,130.58,0.56864628]
[1744688074145,7.6557,130.62,130.58,12.1202802]
[1744688075340,19.20733392,130.62,130.58,0.14216157]
[1744688075835,11.55163392,130.6,130.56,0.063]
[1744688076043,11.55163392,130.6,130.56,0.20516157]
[1744688076648,7.6575,130.59,130.56,0.20516157]
[1744688077144,11.55163392,130.58,130.56,0.063]
[1744688078446,11.55163392,130.57,130.56,0.063]
[1744688078955,19.21033392,130.57,130.56,0.063]
[1744688079460,38.35713392,130.57,130.5,11.61463392]
[1744688079746,11.55163392,130.54,130.5,0.063]
[1744688079944,11.55163392,130.53,130.5,0.063]
[1744688080252,11.55163392,130.54,130.5,0.063]
[1744688080948,11.55163392,130.57,130.52,11.55163392]
[1744688081152,19.20973392,130.58,130.53,11.55163392]
[1744688082250,7.6581,130.58,130.53,11.55163392]
[1744688082438,7.6581,130.58,130.5,0.34732314]
[1744688082439,7.6581,130.58,130.54,11.69379549]
[1744688083333,19.20973392,130.58,130.54,0.14216157]
[1744688084435,11.55163392,130.57,130.52,0.28432314]
[1744688084755,11.55163392,130.57,130.52,12.1202802]
[1744688084959,19.20973392,130.58,130.53,11.55163392]
[1744688087152,7.6581,130.58,130.54,0.14216157]
[1744688087360,7.6581,130.58,130.54,11.69379549]
[1744688088774,7.6557,130.62,130.57,11.69379549]
[1744688088942,11.55163392,130.61,130.55,0.42648471]
[1744688089262,7.6575,130.59,130.56,0.14216157]
[1744688090335,11.55163392,130.58,130.54,12.1202802]
[1744688091069,19.20913392,130.59,130.54,12.1202802]
[1744688092266,7.6575,130.59,130.56,11.55163392]
[1744688092444,1.5338,130.63,130.59,0.14216157]
[1744688092651,7.6552,130.63,130.59,11.69379549]
[1744688093047,7.6552,130.63,130.59,11.55163392]
[1744688093257,0.03,130.64,130.6,30.76992906]
[1744688093470,0.03,130.64,130.62,11.55163392]
[1744688093669,7.6847,130.64,130.62,11.55163392]
[1744688093966,0.03,130.64,130.6,26.87479514]
[1744688094159,0.03,130.64,130.62,0.14216157]
[1744688094867,0.03,130.64,130.6,0.56864628]
[1744688095057,11.55163392,130.63,130.6,0.14216157]
[1744688095251,11.58163392,130.64,130.6,0.14216157]
[1744688095645,11.55163392,130.63,130.58,11.97811863]
[1744688095850,11.55163392,130.62,130.59,0.14216157]
[1744688096450,11.55163392,130.63,130.59,0.14216157]
[1744688096655,11.55163392,130.63,130.59,11.55163392]
[1744688097757,11.55163392,130.63,130.58,0.42648471]
[1744688097963,0.03,130.64,130.61,0.14216157]
[1744688099453,11.55163392,130.63,130.59,0.42648471]
[1744688099656,11.55163392,130.63,130.59,0.14216157]
[1744688099860,11.55163392,130.62,130.59,0.14216157]
[1744688100246,26.8211,130.64,130.56,13.14]
[1744688100247,11.55163392,130.61,130.56,13.14]
[1744688100552,11.55163392,130.58,130.54,0.28432314]
[1744688100755,26.96326157,130.64,130.56,0.14216157]
[1744688100961,11.55163392,130.59,130.56,0.14216157]
[1744688101142,11.55163392,130.6,130.56,0.42648471]
[1744688101347,11.55163392,130.6,130.56,0.28432314]
[1744688101639,11.55163392,130.59,130.56,0.28432314]
[1744688102074,65.0942,130.64,130.56,0.28432314]
[1744688102250,11.55163392,130.6,130.56,0.28432314]
[1744688102447,11.55163392,130.6,130.56,0.42648471]
[1744688102648,11.55163392,130.59,130.56,0.42648471]
[1744688103140,11.55163392,130.6,130.56,0.42648471]
[1744688103660,7.6575,130.59,130.56,0.42648471]
[1744688104071,19.1669,130.64,130.59,0.14216157]
[1744688104283,30.71853392,130.64,130.6,0.14216157]
[1744688104469,19.1669,130.64,130.6,0.14216157]
[1744688104670,7.6552,130.63,130.6,0.14216157]
[1744688105046,19.20683392,130.63,130.59,0.28432314]
[1744688105269,7.6552,130.63,130.61,0.14216157]
[1744688105772,7.6846,130.64,130.61,0.14216157]
[1744688106169,7.6846,130.64,130.63,11.97811863]
[1744688106170,0.03,130.64,130.63,11.97811863]
[1744688106362,0.03,130.64,130.62,11.69379549]
[1744688106556,0.03,130.64,130.62,0.56864628]
[1744688106754,0.03,130.64,130.6,11.69379549]
[1744688106959,11.58163392,130.64,130.6,0.14216157]
[1744688107155,11.55163392,130.63,130.59,0.14216157]
[1744688107866,7.6557,130.62,130.59,0.14216157]
[1744688108263,19.20733392,130.62,130.58,0.28432314]
[1744688108574,19.20733392,130.62,130.58,0.42648471]
[1744688109078,7.6557,130.62,130.59,0.14216157]
[1744688109375,19.20733392,130.62,130.58,0.42648471]
[1744688109575,11.55163392,130.61,130.57,11.69379549]
[1744688109776,7.6557,130.62,130.59,11.97811863]
[1744688109969,0.03,130.64,130.59,11.97811863]
[1744688110271,11.58163392,130.64,130.6,0.14216157]
[1744688110475,0.03,130.64,130.62,11.69379549]
[1744688110678,0.03,130.64,130.63,11.69379549]
[1744688110885,0.03,130.64,130.63,0.14216157]
[1744688112280,0.03,130.64,130.63,19.04257923]
[1744688113276,0.03,130.64,130.63,37.69222809]
[1744688113880,0.03,130.64,130.63,0.14216157]
[1744688114362,0.03,130.64,130.62,0.14216157]
[1744688114561,18.47393295,130.63,130.59,0.14216157]
[1744688114750,18.47393295,130.63,130.59,0.56864628]
[1744688114954,18.47393295,130.63,130.59,18.61609452]
[1744688115164,18.50393295,130.64,130.59,18.61609452]
[1744688115474,0.03,130.64,130.61,0.56864628]
[1744688115678,0.03,130.64,130.61,0.14216157]
[1744688116185,18.50393295,130.64,130.61,0.14216157]
[1744688116358,7.6552,130.63,130.61,0.14216157]
[1744688116774,7.6552,130.63,130.6,0.42648471]
[1744688116977,26.12913295,130.63,130.6,0.42648471]
[1744688117483,7.6552,130.63,130.6,0.42648471]
[1744688122187,26.12913295,130.63,130.59,0.42648471]
[1744688122493,45.26713295,130.63,130.58,18.61609452]
[1744688122880,18.47393295,130.61,130.55,18.7903]
[1744688123185,18.47393295,130.59,130.56,0.28432314]
[1744688123384,18.47393295,130.59,130.56,0.56864628]
[1744688123769,18.47393295,130.58,130.56,0.14216157]
[1744688123960,18.47393295,130.57,130.54,0.28432314]
[1744688124161,7.6593,130.56,130.54,0.14216157]
[1744688124865,7.6593,130.56,130.53,0.14216157]
[1744688126166,7.6593,130.56,130.53,0.42648471]
[1744688127080,25.6665,130.6,130.55,0.14216157]
[1744688127381,44.14043295,130.6,130.55,18.61609452]
[1744688127584,18.47393295,130.59,130.55,0.14216157]
[1744688127770,26.13143295,130.59,130.55,0.14216157]
[1744688129290,7.6575,130.59,130.55,37.69222809]
[1744688129488,26.13143295,130.59,130.55,18.61609452]
[1744688129674,18.47393295,130.58,130.54,0.28432314]
[1744688130498,18.47393295,130.56,130.52,0.14216157]
[1744688130796,7.6599,130.55,130.53,0.14216157]
[1744688131586,7.6599,130.55,130.52,0.14216157]
[1744688132871,7.6595,130.56,130.53,11.56419703]
[1744688133073,7.6595,130.56,130.53,0.14216157]
[1744688133589,19.22369703,130.56,130.53,0.14216157]
[1744688133776,11.56419703,130.55,130.51,0.42648471]
[1744688134278,11.56419703,130.55,130.5,11.7693586]
[1744688134787,7.6604,130.54,130.5,11.7693586]
[1744688135383,19.22459703,130.54,130.5,11.7693586]
[1744688135994,38.37579703,130.54,130.5,0.20516157]
[1744688136196,38.37579703,130.54,130.5,0.063]
[1744688136197,11.56419703,130.53,130.5,0.063]
[1744688136379,11.56419703,130.51,130.5,0.063]
[1744688136890,27.49649703,130.51,130.5,0.063]
[1744688138092,15.9323,130.51,130.5,0.063]
[1744688138306,27.49649703,130.51,130.5,0.063]
[1744688139317,34.45616844,130.51,130.5,0.063]
[1744688140295,27.85166844,130.51,130.5,0.063]
[1744688150017,27.85166844,130.51,130.49,0.063]
[1744688150198,18.52386844,130.5,130.49,0.063]
[1744688150707,9.3278,130.51,130.49,0.063]
[1744688150909,27.85166844,130.51,130.49,0.063]
[1744688151213,18.52386844,130.5,130.49,0.063]
[1744688152211,26.18666844,130.5,130.49,0.063]
[1744688152713,26.18666844,130.5,130.49,0.0001]
[1744688154118,18.52386844,130.55,130.5,0.56864628]
[1744688154299,7.6604,130.54,130.5,19.09251472]
[1744688154820,26.18426844,130.54,130.5,0.14216157]
[1744688155417,7.6604,130.54,130.5,18.66603001]
[1744688156218,7.6604,130.54,130.5,0.14216157]
[1744688156517,7.6604,130.54,130.5,18.66603001]
[1744688157616,26.18426844,130.54,130.49,18.52396844]
[1744688159116,26.18426844,130.54,130.49,26.18706844]
[1744688159919,7.6604,130.54,130.5,18.52386844]
[1744688160718,82.49446157,130.59,130.5,18.52386844]
[1744688160719,0.03,130.62,130.53,18.80819158]
[1744688160916,18.52386844,130.6,130.55,18.52386844]
[1744688161104,7.6563,130.61,130.53,0.28432314]
[1744688161304,19.24416706,130.62,130.57,11.55816706]
[1744688162400,19.24416706,130.62,130.58,0.14216157]
[1744688163506,19.24416706,130.62,130.58,7.80016157]
[1744688163821,0.03,130.62,130.58,19.78471334]
[1744688164023,0.03,130.62,130.59,11.55816706]
[1744688164617,0.03,130.62,130.58,19.78471334]
[1744688165700,0.03,130.62,130.56,0.14216157]
[1744688165913,11.55816706,130.61,130.57,0.14216157]
[1744688166107,11.55816706,130.61,130.57,11.55816706]
[1744688166508,11.58816706,130.62,130.58,0.14216157]
[1744688166725,0.03,130.62,130.58,0.14216157]
[1744688167016,11.58816706,130.62,130.58,0.14216157]
[1744688167222,0.03,130.62,130.58,11.55816706]
[1744688168318,11.58816706,130.62,130.58,0.14216157]
[1744688169325,7.6563,130.61,130.58,0.14216157]
[1744688170021,7.6563,130.61,130.57,11.55816706]
[1744688170203,11.55816706,130.59,130.54,11.55816706]
[1744688170522,11.55816706,130.59,130.54,11.70032863]
[1744688171126,19.21446706,130.61,130.57,11.55816706]
[1744688171828,19.21446706,130.61,130.57,0.14216157]
[1744688172229,7.6563,130.61,130.57,11.55816706]
[1744688173437,7.6563,130.61,130.57,0.14216157]
[1744688173722,7.686,130.62,130.57,7.80076157]
[1744688173930,7.686,130.62,130.57,13.94466157]
[1744688174227,7.686,130.62,130.58,11.55816706]
[1744688175234,7.686,130.62,130.59,11.70032863]
[1744688176636,0.03,130.62,130.59,11.70032863]
[1744688178336,0.03,130.62,130.59,0.14216157]
[1744688179839,0.03,130.62,130.61,11.70032863]
[1744688183838,0.03,130.62,130.61,12.12681334]
[1744688184134,0.03,130.62,130.61,38.4327622]
[1744688185238,0.03,130.62,130.61,62.23092926]
[1744688185540,0.03,130.62,130.61,50.6727622]
[1744688186641,0.03,130.62,130.61,43.0164622]
[1744688187214,0.03,130.62,130.61,50.6727622]
[1744688187841,0.03,130.62,130.61,24.22465177]
[1744688188341,0.03,130.62,130.61,24.36681334]
[1744688189043,0.03,130.62,130.61,24.22465177]
[1744688189252,0.03,130.62,130.61,24.36681334]
[1744688189737,0.03,130.62,130.61,12.38216157]
[1744688190051,0.03,130.62,130.61,24.36681334]
[1744688191521,0.03,130.62,130.61,50.6727622]
[1744688192148,0.03,130.62,130.61,43.0164622]
[1744688192543,0.03,130.62,130.61,31.45829514]
[1744688192850,0.03,130.62,130.61,43.0164622]
[1744688193441,0.03,130.62,130.61,31.45829514]
[1744688193620,0.03,130.62,130.61,43.0164622]
[1744688194744,0.03,130.62,130.61,50.6727622]
[1744688198149,0.03,130.62,130.61,43.0164622]
[1744688198345,0.03,130.62,130.61,42.87430063]
[1744688198554,0.03,130.62,130.61,12.38216157]
[1744688199149,0.03,130.62,130.59,0.28432314]
[1744688199328,0.03,130.62,130.59,0.14216157]
[1744688200351,0.03,130.62,130.59,11.70032863]
[1744688201248,7.6857,130.62,130.59,11.70032863]
[1744688201754,7.6857,130.62,130.58,11.98465177]
[1744688201930,7.6857,130.62,130.59,0.14216157]
[1744688202340,19.24386706,130.62,130.57,12.04216157]
[1744688202539,19.24386706,130.62,130.56,11.55816706]
[1744688202540,11.55816706,130.61,130.56,11.55816706]
[1744688203141,7.6569,130.6,130.56,11.55816706]
[1744688203336,7.6569,130.6,130.54,0.14216157]
[1744688203337,11.55816706,130.58,130.54,0.14216157]
[1744688204134,13.17416706,130.57,130.53,0.14216157]
[1744688204329,13.17416706,130.57,130.53,11.70032863]
[1744688205154,7.6593,130.56,130.53,11.70032863]
[1744688206049,7.6593,130.56,130.53,0.14216157]
[1744688206353,20.6776,130.61,130.55,11.70032863]
[1744688206543,20.6776,130.61,130.57,11.55816706]
[1744688207450,7.6569,130.6,130.57,11.55816706]
[1744688208446,9.193,130.61,130.59,11.55816706]
[1744688208649,7.6859,130.62,130.6,11.55816706]
[1744688209029,0.03,130.62,130.61,11.70032863]
[1744688209362,0.03,130.62,130.61,49.99092926]
[1744688209553,0.03,130.64,130.63,0.28432314]
[1744688209753,0.03,130.64,130.63,12.12681334]
[1744688211053,0.03,130.64,130.63,38.4316622]
[1744688211661,0.03,130.64,130.63,121.57382377]
[1744688214265,0.03,130.64,130.63,121.4316622]
[1744688215073,0.03,130.64,130.63,30.63430063]
[1744688215248,0.03,130.64,130.63,11.8424902]
[1744688215447,0.03,130.64,130.63,12.12681334]
[1744688215770,0.03,130.64,130.63,11.8424902]
[1744688216275,0.03,130.64,130.63,19.78201334]
[1744688216460,0.03,130.64,130.63,38.4316622]
[1744688220359,0.03,130.64,130.63,0.28432314]
[1744688220675,0.03,130.64,130.63,0.14216157]
[1744688220880,0.03,130.64,130.63,11.70032863]
[1744688223681,0.03,130.64,130.61,11.9]
[1744688223857,11.58816706,130.64,130.61,11.9]
[1744688224170,11.55816706,130.62,130.58,0.14216157]
[1744688224358,11.55816706,130.61,130.57,11.62]
[1744688224752,7.6569,130.6,130.57,0.14216157]
[1744688225246,7.6569,130.6,130.57,11.70032863]
[1744688226776,7.6563,130.61,130.57,11.70032863]
[1744688227570,7.6563,130.61,130.58,11.55816706]
[1744688227875,7.6563,130.61,130.59,11.55816706]
[1744688228376,7.6563,130.61,130.59,0.14216157]
[1744688229277,38.35326706,130.62,130.57,0.14216157]
[1744688229487,11.55816706,130.61,130.57,0.14216157]
[1744688230476,7.6557,130.62,130.58,11.55816706]
[1744688232272,7.6557,130.62,130.6,0.14216157]
[1744688233658,0.03,130.64,130.61,11.55816706]
[1744688233857,7.6849,130.64,130.61,11.55816706]
[1744688234983,11.55816706,130.63,130.6,0.14216157]
[1744688235672,7.6557,130.62,130.6,0.14216157]
[1744688236779,7.6552,130.63,130.6,0.14216157]
[1744688237191,0.03,130.64,130.61,11.55816706]
[1744688237377,0.03,130.64,130.63,11.70032863]
[1744688237580,0.03,130.64,130.63,0.14216157]
[1744688237781,0.03,130.64,130.63,11.70032863]
[1744688238280,0.03,130.64,130.63,0.14216157]
[1744688239290,0.03,130.64,130.63,19.03888576]
[1744688240985,0.03,130.64,130.63,45.34373462]
[1744688242090,0.03,130.64,130.63,56.96373462]
[1744688243586,0.03,130.64,130.63,49.30853462]
[1744688243791,0.03,130.64,130.63,56.96373462]
[1744688244588,0.03,130.64,130.63,49.30853462]
[1744688245993,0.03,130.64,130.63,30.83829514]
[1744688246194,0.03,130.64,130.63,49.30853462]
[1744688247488,0.03,130.64,130.63,30.65888576]
[1744688250300,0.03,130.64,130.63,19.03888576]
[1744688251117,0.03,130.64,130.62,0.14216157]
[1744688251622,0.03,130.64,130.62,18.61240105]
[1744688252603,0.03,130.64,130.62,0.14216157]
[1744688253105,0.03,130.64,130.6,18.47023948]
[1744688253416,0.03,130.64,130.62,0.14216157]
[1744688255312,0.03,130.64,130.62,18.61240105]
[1744688257112,0.03,130.64,130.62,0.14216157]
[1744688258905,0.03,130.64,130.61,18.47023948]
[1744688259128,0.03,130.64,130.59,0.56864628]
[1744688259299,0.03,130.64,130.59,12.11897154]
[1744688259300,11.58032526,130.64,130.59,12.11897154]
[1744688259502,11.58032526,130.64,130.59,11.97680997]
[1744688259815,11.58032526,130.64,130.59,11.69248683]
[1744688260114,0.03,130.64,130.59,11.69248683]
[1744688260309,11.58032526,130.64,130.59,11.69248683]
[1744688260812,26.8211,130.64,130.59,11.69248683]
[1744688261117,26.8211,130.64,130.6,11.55032526]
[1744688262321,7.6846,130.64,130.61,11.55032526]
[1744688262501,7.6846,130.64,130.6,11.69248683]
[1744688262701,19.23492526,130.64,130.59,11.55032526]
[1744688262900,11.55032526,130.63,130.58,11.69248683]
[1744688263925,26.8211,130.64,130.59,11.55032526]
[1744688263926,38.37142526,130.64,130.59,11.55032526]
[1744688265598,11.55032526,130.63,130.58,11.55032526]
[1744688265995,1.6294,130.61,130.57,11.55032526]
[1744688266220,11.55032526,130.6,130.56,0.063]
[1744688267313,7.6575,130.59,130.56,0.063]
[1744688269320,26.7999,130.6,130.56,11.61332526]
[1744688269548,7.6569,130.6,130.57,11.55032526]
[1744688270816,7.6569,130.6,130.56,11.61332526]
[1744688271119,7.6569,130.6,130.56,0.20516157]
[1744688271627,38.34962526,130.6,130.56,0.063]
[1744688271988,11.55032526,130.59,130.56,0.063]
[1744688272893,26.7993,130.6,130.56,0.063]
[1744688273123,26.7993,130.6,130.56,11.61332526]
[1744688274828,7.6569,130.6,130.56,11.61332526]
[1744688275036,7.6569,130.6,130.57,10.11093555]
[1744688278035,7.6569,130.6,130.56,10.17393555]
[1744688279024,7.6569,130.6,130.56,0.063]
[1744688279323,17.76783555,130.6,130.56,0.063]
[1744688279530,10.11563795,130.59,130.56,0.063]
[1744688280039,7.6552,130.63,130.58,26.0]
[1744688280210,82.3632,130.64,130.62,10.11563795]
[1744688280211,1.5632,130.64,130.62,10.11563795]
[1744688280411,1.5632,130.64,130.59,0.56864628]
[1744688280603,1.5632,130.64,130.59,0.28432314]
[1744688280924,9.2178,130.64,130.59,0.28432314]
[1744688281137,1.5632,130.64,130.62,10.11563795]
[1744688281314,1.5632,130.64,130.61,10.11563795]
[1744688282434,9.2179,130.64,130.61,0.14216157]
[1744688282723,9.2179,130.64,130.6,10.11563795]
[1744688282929,10.11563795,130.62,130.58,0.14216157]
[1744688283311,7.6563,130.61,130.58,0.14216157]
[1744688283920,7.6563,130.61,130.58,10.25779952]
[1744688284632,10.11563795,130.61,130.56,10.17863795]
[1744688284812,10.11563795,130.6,130.56,0.20516157]
[1744688285011,10.11563795,130.61,130.56,10.32079952]
[1744688285631,10.11563795,130.59,130.56,0.063]
[1744688285823,1.5431,130.58,130.56,0.063]
[1744688286827,7.6587,130.57,130.56,0.063]
[1744688288444,17.77433795,130.57,130.56,0.063]
[1744688294044,9.2013,130.58,130.56,0.063]
[1744688295147,1.5431,130.58,130.56,0.063]
[1744688295448,36.91533795,130.6,130.56,0.063]
[1744688295650,10.11563795,130.59,130.56,0.063]
[1744688296451,10.11563795,130.58,130.56,0.063]
[1744688297434,17.77433795,130.57,130.56,0.063]
[1744688297640,19.30063795,130.57,130.56,0.063]
[1744688297841,9.185,130.57,130.56,0.063]
[1744688298047,19.30063795,130.57,130.56,0.063]
[1744688300142,9.185,130.57,130.56,0.063]
[1744688300352,7.6587,130.57,130.56,0.063]
[1744688300860,7.6575,130.59,130.56,0.063]
[1744688302259,7.657,130.6,130.58,10.11563795]
[1744688303061,7.657,130.6,130.57,10.11563795]
[1744688303637,7.6564,130.61,130.58,10.25779952]
[1744688304356,17.77203795,130.61,130.57,0.14216157]
[1744688304945,7.6564,130.61,130.57,10.25779952]
[1744688307082,36.91293795,130.61,130.56,10.17863795]
[1744688307239,26.7973,130.61,130.56,0.063]
[1744688307443,36.91293795,130.61,130.56,10.17863795]
[1744688307738,26.7973,130.61,130.56,10.17863795]
[1744688307943,36.91293795,130.61,130.56,10.17863795]
[1744688308365,10.11563795,130.6,130.56,10.17863795]
[1744688308552,26.7973,130.61,130.56,0.063]
[1744688308553,10.11563795,130.58,130.56,0.063]
[1744688308750,10.11563795,130.57,130.56,0.063]
[1744688309566,10.11563795,130.58,130.56,0.063]
[1744688309864,26.7973,130.61,130.56,0.063]
[1744688310040,10.11563795,130.59,130.56,0.063]
[1744688310242,10.11563795,130.58,130.56,0.063]
[1744688311969,7.6587,130.57,130.56,0.063]
[1744688314675,7.6581,130.58,130.56,0.063]
[1744688316968,26.8018,130.59,130.56,0.063]
[1744688320075,36.91743795,130.59,130.56,0.063]
[1744688322574,7.6575,130.59,130.56,0.063]
[1744688325254,26.7978,130.61,130.56,0.063]
[1744688325574,10.11563795,130.6,130.56,0.063]
[1744688327276,6.47377614,130.6,130.56,0.063]
[1744688327680,7.6575,130.59,130.56,0.063]
[1744688333481,7.6569,130.6,130.56,0.063]
[1744688334168,7.6569,130.6,130.56,6.67893771]
[1744688335796,7.6569,130.6,130.56,0.63164628]
[1744688336094,14.13067614,130.6,130.56,0.20516157]
[1744688336994,14.13067614,130.6,130.56,0.063]
[1744688337195,6.47377614,130.59,130.56,0.063]
[1744688337490,7.6587,130.57,130.56,0.063]
[1744688339686,7.6581,130.58,130.56,0.063]
[1744688340499,14.13187614,130.58,130.56,0.063]
[1744688341482,7.6581,130.58,130.56,0.063]
[1744688342001,14.13187614,130.58,130.56,0.063]
[1744688342308,6.47377614,130.57,130.56,0.063]
[1744688344202,14.13247614,130.57,130.56,0.063]
[1744688345903,7.6587,130.57,130.56,0.063]
[1744688346898,7.6575,130.59,130.56,0.063]
[1744688349305,26.8013,130.59,130.56,0.063]
[1744688349503,6.47377614,130.57,130.56,0.063]
[1744688350107,8.07557614,130.57,130.56,0.063]
[1744688351202,15.73427614,130.57,130.56,0.063]
[1744688351408,6.47377614,130.55,130.54,0.063]
[1744688353311,6.47377614,130.55,130.54,0.0001]
[1744688353312,40.17094227,130.55,130.54,0.0001]
[1744688354508,59.32064227,130.55,130.52,0.0001]
[1744688354804,6.61593771,130.53,130.52,0.0001]
[1744688355404,14.27693771,130.53,130.52,0.0001]
[1744688357083,25.23693771,130.53,130.52,0.0001]
[1744688357490,0.14216157,130.52,130.49,0.0001]
[1744688357805,6.47377614,130.5,130.49,0.0001]
[1744688358983,6.61593771,130.5,130.49,0.0001]
[1744688359621,14.27873771,130.5,130.49,0.0001]
[1744688360307,14.13657614,130.5,130.49,0.0001]
[1744688362512,7.6628,130.5,130.49,0.0001]
[1744688364003,30.1126,130.53,130.49,0.0001]
[1744688364212,25.62377614,130.55,130.5,6.47377614]
[1744688364412,33.28367614,130.55,130.5,6.47377614]
[1744688364723,6.47377614,130.54,130.5,0.14216157]
[1744688365426,33.28367614,130.55,130.5,6.47377614]
[1744688367719,26.8099,130.55,130.51,0.14216157]
[1744688368112,33.28367614,130.55,130.51,0.14216157]
[1744688369024,6.47377614,130.53,130.49,0.0001]
[1744688369323,6.47377614,130.51,130.49,0.0001]
[1744688369704,6.47377614,130.52,130.49,0.0001]
[1744688370424,26.8136,130.53,130.49,0.0001]
[1744688370626,33.28737614,130.53,130.49,0.0001]
[1744688371024,26.8136,130.53,130.49,6.47387614]
[1744688372126,6.47377614,130.53,130.49,0.0001]
[1744688372307,6.47377614,130.54,130.49,6.47387614]
[1744688373730,26.8136,130.53,130.49,6.47387614]
[1744688375330,26.8136,130.53,130.5,0.14216157]
[1744688375535,26.8136,130.53,130.5,6.47377614]
[1744688376438,26.8136,130.53,130.5,0.14216157]
[1744688376614,33.28737614,130.53,130.49,0.0001]
[1744688376916,6.47377614,130.52,130.49,0.0001]
[1744688377119,6.47377614,130.51,130.49,0.0001]
[1744688377531,7.6628,130.5,130.49,0.0001]
[1744688378233,14.13657614,130.5,130.49,0.0001]
[1744688380112,7.6628,130.5,130.49,0.0001]
[1744688382117,7.6622,130.51,130.49,0.0001]
[1744688383135,14.13597614,130.51,130.49,0.0001]
[1744688385940,6.47377614,130.5,130.49,0.0001]
[1744688386838,26.0,130.48,130.47,0.0001]
[1744688387046,40.27993771,130.48,130.47,0.0001]
[1744688388931,40.13777614,130.48,130.47,0.0001]
[1744688391238,40.27993771,130.48,130.47,0.0001]
[1744688392143,40.13777614,130.48,130.47,0.0001]
[1744688392348,33.664,130.48,130.47,0.0001]
[1744688392550,40.27993771,130.48,130.46,0.0001]
[1744688392725,6.61593771,130.47,130.46,0.0001]
[1744688394657,14.13827614,130.47,130.46,0.0001]
[1744688396646,7.6645,130.47,130.46,0.0001]
[1744688397049,14.13827614,130.47,130.46,0.0001]
[1744688400945,14.28043771,130.47,130.46,0.0001]
[1744688401656,25.24043771,130.47,130.46,0.0001]
[1744688402232,18.6245,130.47,130.46,0.0001]
[1744688403753,7.6645,130.47,130.46,0.0001]
[1744688403936,7.6642,130.48,130.46,6.75819928]
[1744688404137,7.6642,130.48,130.46,0.14226157]
[1744688405157,6.47377614,130.49,130.46,0.0001]
[1744688405461,44.25467614,130.5,130.46,0.0001]
[1744688406367,37.7809,130.5,130.46,0.14226157]
[1744688406656,37.7809,130.5,130.46,6.61603771]
[1744688407752,7.6628,130.5,130.48,6.47377614]
[1744688408261,7.6628,130.5,130.47,6.47377614]
[1744688408772,7.6616,130.52,130.49,6.47377614]
[1744688408947,7.6616,130.52,130.5,6.47377614]
[1744688409263,7.6616,130.52,130.49,0.14216157]
[1744688409434,7.691,130.53,130.49,6.61593771]
[1744688409754,7.691,130.53,130.5,6.47377614]
[1744688410336,0.03,130.53,130.52,6.61593771]
[1744688413262,0.03,130.53,130.52,7.04242242]
[1744688413433,0.03,130.53,130.52,25.69207128]
[1744688413633,0.03,130.59,130.53,19.21829514]
[1744688413864,0.03,130.59,130.58,6.47377614]
[1744688414242,0.03,130.59,130.58,6.61593771]
[1744688415060,0.03,130.59,130.58,0.14216157]
[1744688415355,0.03,130.59,130.58,10.25280599]
[1744688415863,0.03,130.59,130.58,35.46493956]
[1744688416161,0.03,130.59,130.58,10.6792907]
[1744688416743,0.03,130.59,130.58,0.14216157]
[1744688416949,0.03,130.59,130.58,10.6792907]
[1744688419969,0.03,130.61,130.6,44.933972]
[1744688420150,0.03,130.61,130.6,66.26893956]
[1744688420347,0.03,130.61,130.6,80.31580113]
[1744688420570,0.03,130.64,130.63,45.21829514]
[1744688420745,0.03,130.64,130.63,55.32893956]
[1744688421058,7.2424,130.68,130.65,0.42648471]
[1744688421271,26.3731,130.68,130.64,0.14216157]
[1744688421461,26.3731,130.68,130.64,10.25280599]
[1744688421645,26.3731,130.68,130.65,10.11064442]
[1744688421841,26.3731,130.68,130.67,0.14216157]
[1744688421842,7.2424,130.68,130.67,0.14216157]
[1744688422167,0.03,130.69,130.67,0.14216157]
[1744688422366,0.03,130.69,130.66,0.14216157]
[1744688422544,0.03,130.69,130.66,10.11064442]
[1744688423264,0.03,130.69,130.67,10.25280599]